bitfinex/quotes_ETHUSD_20220115
["timestamp","ask_amount","ask_price","bid_price","bid_amount"]
[1642262485902,0.473463,3368.4,3367.2,0.01477901]
[1642262486102,0.473463,3368.4,3367.8,1.18680885]
[1642262486302,1.30228008,3368.2,3367.8,1.18680885]
[1642262486507,0.473463,3368.4,3367.9,0.01080005]
[1642262487502,0.01065251,3368.3,3367.9,0.01080005]
[1642262487702,0.473463,3368.4,3368.2,1.40327412]
[1642262487904,0.473463,3368.4,3367.9,0.01080005]
[1642262488102,0.473463,3368.4,3368.3,0.00852636]
[1642262488303,0.473463,3368.4,3367.9,0.01080005]
[1642262488555,0.03066856,3368.3,3367.9,0.01080005]
[1642262488758,0.473463,3368.4,3368.0,0.02668662]
[1642262489159,1.250463,3368.4,3368.1,0.0096632]
[1642262489554,1.250463,3368.4,3368.0,0.01023163]
[1642262490555,0.00366167,3368.3,3368.0,0.01023163]
[1642262491155,1.250463,3368.4,3368.0,0.01023163]
[1642262491554,7.32019142,3368.1,3368.0,0.01023163]
[1642262491761,1.27019142,3368.1,3368.0,0.01023163]
[1642262491954,0.428,3368.2,3368.0,0.01023163]
[1642262492404,1.205,3368.2,3368.0,0.01023163]
[1642262493004,1.202,3368.2,3368.0,0.01023163]
[1642262494418,1.247463,3368.2,3368.0,0.01023163]
[1642262494712,0.02369069,3368.0,3366.5,1.42427201]
[1642262494911,0.045463,3367.6,3366.5,1.42427201]
[1642262495108,0.045463,3367.3,3366.6,0.00795792]
[1642262495308,0.86733481,3367.1,3366.6,0.00795792]
[1642262495506,0.045463,3367.3,3366.4,0.00909477]
[1642262495507,0.428,3367.0,3366.4,0.00909477]
[1642262495708,1.6005134,3366.9,3366.4,0.00909477]
[1642262496557,1.6005134,3366.9,3366.7,2.54072708]
[1642262496856,1.6005134,3366.9,3366.8,0.00682108]
[1642262496857,1.1725134,3366.9,3366.8,0.00682108]
[1642262498157,1.1725134,3366.9,3366.8,1.5291138]
[1642262498756,1.9495134,3366.9,3366.8,1.5291138]
[1642262498955,1.9495134,3366.9,3366.8,4.06984088]
[1642262499155,1.9495134,3366.9,3366.8,7.06984088]
[1642262500010,1.9495134,3366.9,3366.8,4.06984088]
[1642262502010,2.7265134,3366.9,3366.8,4.06984088]
[1642262503312,2.7265134,3366.9,3366.8,2.54754816]
[1642262504153,2.70020279,3366.9,3366.8,2.54754816]
[1642262504356,10.55,3366.7,3365.8,0.0575861]
[1642262504562,0.01226269,3365.9,3365.2,3.26021746]
[1642262504764,0.428,3366.7,3365.7,2.14308378]
[1642262504765,0.045463,3365.8,3365.7,2.14308378]
[1642262504955,0.045463,3366.0,3365.7,2.14308378]
[1642262505157,0.777,3365.8,3365.7,2.14308378]
[1642262505560,1.943221,3365.8,3365.7,2.14933644]
[1642262505756,0.045463,3366.3,3365.7,0.00625266]
[1642262505957,1.554,3366.9,3365.7,0.00625266]
[1642262506156,0.045463,3366.5,3365.6,0.74277]
[1642262506357,0.045463,3366.3,3365.6,0.69277]
[1642262506557,0.045463,3366.3,3365.9,0.00252892]
[1642262506758,1.23184474,3366.2,3366.0,1.34101462]
[1642262506958,0.045463,3366.3,3366.0,1.34556201]
[1642262507206,0.045463,3366.5,3366.2,0.00654307]
[1642262507409,0.045463,3366.8,3366.2,0.00654307]
[1642262507606,3.48756397,3368.0,3366.3,0.00284212]
[1642262507808,1.18095523,3367.5,3367.0,1.22528254]
[1642262508005,0.0022737,3367.2,3367.0,0.7424219]
[1642262508205,0.0022737,3367.2,3367.1,1.48042684]
[1642262508405,0.777,3367.5,3367.1,1.48042684]
[1642262508807,0.00341054,3367.4,3366.3,0.00284212]
[1642262509010,1.92476126,3367.3,3366.3,0.00284212]
[1642262509207,1.92760338,3367.3,3366.0,0.00454739]
[1642262509409,0.02965986,3367.1,3366.0,0.00454739]
[1642262509710,0.42913685,3367.0,3366.0,0.00454739]
[1642262509915,1.42463687,3366.2,3366.0,0.00454739]
[1642262510108,1.22471071,3366.1,3366.0,0.00454739]
[1642262511559,2.00171071,3366.1,3366.0,0.00454739]
[1642262511762,17.2,3366.0,3364.5,3.10009845]
[1642262512064,17.2,3366.0,3364.6,0.00795792]
[1642262512065,0.03262635,3364.8,3364.6,0.00795792]
[1642262512261,0.428,3364.7,3364.6,0.00795792]
[1642262512465,2.78524143,3365.0,3364.4,0.00909477]
[1642262512661,0.428,3364.6,3364.4,0.00909477]
[1642262512861,2.47118922,3364.5,3364.4,0.00909477]
[1642262513062,2.89918922,3364.5,3364.4,0.00909477]
[1642262513461,1.73298041,3364.5,3364.4,0.00909477]
[1642262513764,1.30498041,3364.5,3364.4,0.00909477]
[1642262514462,1.30498041,3364.5,3364.4,1.12238917]
[1642262514463,0.61328041,3364.5,3364.4,1.12238917]
[1642262514914,1.39028041,3364.5,3364.4,1.12238917]
[1642262515514,1.36396659,3364.5,3364.4,1.12238917]
[1642262516515,1.36396659,3364.5,3364.4,0.00909477]
[1642262516919,6.06396659,3364.5,3364.0,0.01136846]
[1642262517119,0.428,3364.4,3364.0,0.01136846]
[1642262517315,0.428,3364.4,3363.7,1.44401994]
[1642262517316,0.428,3364.4,3363.8,0.01250531]
[1642262517516,1.24679765,3364.2,3363.8,0.01250531]
[1642262517721,0.428,3364.1,3363.8,0.01250531]
[1642262518114,1.205,3364.1,3363.8,0.01250531]
[1642262518316,0.00399346,3364.0,3363.8,0.01250531]
[1642262518563,14.9843228,3363.8,3363.4,0.01477901]
[1642262518764,14.96431453,3363.8,3363.4,0.01477901]
[1642262518964,1.4247724,3363.6,3363.1,0.01205364]
[1642262519363,1.42079684,3363.6,3363.2,0.01591585]
[1642262519562,1.42079684,3363.6,3363.3,1.28850756]
[1642262519962,1.42079684,3363.6,3363.4,0.01477901]
[1642262520763,1.42079684,3363.6,3363.0,0.0170527]
[1642262521364,1.18889025,3363.2,3363.0,0.0170527]
[1642262521865,1.61689025,3363.2,3363.0,0.0170527]
[1642262522309,1.61689025,3363.2,3362.7,0.01875797]
[1642262522912,2.36209025,3363.2,3362.7,0.01875797]
[1642262523311,2.36209025,3363.2,3362.3,0.02103166]
[1642262524008,2.36209025,3363.2,3362.0,2.16602992]
[1642262524009,17.2,3363.1,3362.0,2.16602992]
[1642262524211,0.01206811,3362.7,3362.0,2.16602992]
[1642262524411,0.428,3362.6,3362.1,0.00113685]
[1642262524711,1.18889025,3363.2,3361.7,8.35716677]
[1642262524712,0.42913684,3362.5,3361.7,8.35716677]
[1642262524911,2.7596916,3362.4,3361.7,8.35716677]
[1642262525110,1.54712297,3362.4,3361.8,0.00170527]
[1642262525310,0.777,3362.7,3361.9,0.01283627]
[1642262525514,0.428,3363.3,3361.9,0.01283627]
[1642262525709,0.428,3363.3,3362.0,0.00170527]
[1642262525710,0.00170527,3362.6,3362.0,0.00170527]
[1642262526161,0.00113684,3362.5,3362.1,1.36079183]
[1642262526558,0.00511581,3363.2,3362.1,1.36079183]
[1642262526960,0.00454738,3363.1,3362.1,1.36079183]
[1642262527360,0.00397896,3363.0,3362.1,1.36079183]
[1642262527561,0.00397896,3363.0,3362.2,2.54351282]
[1642262527760,0.00341054,3362.9,3362.2,2.54351282]
[1642262528169,0.00284211,3362.8,3362.2,2.54351282]
[1642262528362,0.00284211,3362.8,3362.2,4.57895096]
[1642262528561,0.00227369,3362.7,3362.2,4.57895096]
[1642262528762,0.00227369,3362.7,3362.3,0.05897927]
[1642262529062,0.777,3363.0,3362.2,3.28696282]
[1642262529063,0.00341054,3362.9,3362.2,2.54351282]
[1642262529261,0.00341054,3362.9,3362.4,1.280409]
[1642262529460,0.00284211,3362.8,3362.4,1.280409]
[1642262529706,0.00284211,3362.8,3362.6,0.03392564]
[1642262529910,0.00227369,3362.7,3362.5,3.18736891]
[1642262530104,0.00227369,3362.7,3362.5,1.18994956]
[1642262530305,0.00341054,3362.9,3362.6,8.8516]
[1642262530505,0.00341054,3362.9,3362.7,0.04005178]
[1642262530712,0.00284211,3362.8,3362.6,0.74497]
[1642262530905,0.27639993,3363.9,3362.6,0.74497]
[1642262531307,0.00397897,3363.5,3363.2,1.24382628]
[1642262531507,0.00397897,3363.5,3362.7,2.54351282]
[1642262531707,0.00341054,3363.4,3362.7,2.54351282]
[1642262532105,0.00284212,3363.3,3362.7,2.54351282]
[1642262532506,0.0022737,3363.2,3362.6,0.0016]
[1642262532906,0.00170527,3363.1,3362.6,0.0016]
[1642262533109,0.00170527,3363.1,3362.7,1.38231706]
[1642262533320,0.00113685,3363.0,3362.6,0.0016]
[1642262533566,0.00113685,3363.0,3362.0,0.00170527]
[1642262533567,0.428,3362.9,3362.3,1.44757612]
[1642262533764,0.428,3362.9,3362.3,1.39406319]
[1642262534067,0.428,3362.9,3362.4,0.00227369]
[1642262534264,1.39134764,3362.7,3362.4,0.00227369]
[1642262534463,1.49560628,3362.6,3362.4,0.00227369]
[1642262534663,1.96514616,3362.5,3362.4,0.00227369]
[1642262534863,2.39314616,3362.5,3362.4,0.00227369]
[1642262535266,2.39314616,3362.5,3361.3,2.17136418]
[1642262535267,7.3,3362.4,3361.3,2.17136418]
[1642262535466,5.351,3362.1,3361.4,0.00568423]
[1642262535666,1.92828761,3362.0,3361.4,0.00568423]
[1642262535874,3.13281254,3362.0,3361.4,1.30850136]
[1642262536063,3.13281254,3362.0,3361.4,0.00568423]
[1642262536263,3.13281254,3362.0,3361.5,0.00511581]
[1642262536867,3.13281254,3362.0,3360.8,0.00909478]
[1642262537065,3.13281254,3362.0,3360.8,1.43986372]
[1642262537316,3.13281254,3362.0,3360.8,0.00909478]
[1642262537510,0.01531854,3361.8,3360.9,0.00852635]
[1642262537716,1.48995769,3362.6,3361.7,0.01259675]
[1642262537914,1.48995769,3362.6,3361.8,0.0764646]
[1642262538115,0.777,3362.9,3361.8,0.0764646]
[1642262538116,0.777,3362.9,3361.8,0.00341054]
[1642262538313,0.777,3362.9,3361.9,0.00284212]
[1642262538617,1.11881066,3361.7,3361.5,0.00511581]
[1642262539013,5.0633737,3362.8,3361.5,0.00511581]
[1642262539212,5.0633737,3362.8,3361.3,0.00625266]
[1642262539414,0.42970527,3362.7,3361.3,0.00625266]
[1642262539814,0.00113685,3362.6,3361.3,0.00625266]
[1642262540121,1.42274585,3362.5,3361.3,0.00625266]
[1642262540316,0.0008,3362.0,3361.3,0.00625266]
[1642262540515,0.0016,3362.0,3361.0,0.00795793]
[1642262540714,3.88853735,3362.0,3361.0,0.00795793]
[1642262540970,1.37382352,3361.9,3361.0,0.00795793]
[1642262541360,2.0335094,3361.8,3361.0,0.00795793]
[1642262541559,3.0918094,3361.8,3361.0,0.00795793]
[1642262542161,3.0918094,3361.8,3360.7,0.0096632]
[1642262542359,1.09929739,3361.4,3360.7,0.0096632]
[1642262542560,1.53854485,3361.4,3360.7,0.0096632]
[1642262543561,1.53854485,3361.4,3361.2,1.39677656]
[1642262543767,1.53854485,3361.4,3360.7,0.0096632]
[1642262543961,2.31554485,3361.4,3361.3,0.00625266]
[1642262544161,2.31554485,3361.4,3360.6,0.118992]
[1642262544162,2.31554485,3361.4,3360.7,0.0096632]
[1642262545906,1.28561222,3360.9,3360.7,0.0096632]
[1642262546108,2.30761954,3361.4,3360.7,0.0096632]
[1642262546507,2.30761954,3361.4,3360.7,1.46650661]
[1642262546508,2.30841954,3361.4,3360.7,1.46650661]
[1642262546911,2.30841954,3361.4,3360.8,0.00909478]
[1642262547108,3.08541954,3361.4,3360.8,0.00909478]
[1642262547509,3.08621954,3361.4,3360.8,0.00909478]
[1642262547808,1.11755493,3361.3,3360.7,0.0096632]
[1642262548763,1.11755493,3361.3,3360.9,2.54436221]
[1642262548967,1.11755493,3361.3,3360.9,2.47982335]
[1642262549162,1.11755493,3361.3,3361.0,0.00795793]
[1642262549364,1.11755493,3361.3,3360.9,2.34623158]
[1642262549565,1.11755493,3361.3,3360.6,0.118992]
[1642262549768,0.00113685,3361.2,3360.6,0.118992]
[1642262550064,0.00113685,3361.2,3360.6,0.06655045]
[1642262550264,0.00227369,3361.1,3360.0,1.55684341]
[1642262550465,2.00227369,3361.1,3360.0,1.55684341]
[1642262550665,0.00170527,3361.0,3360.1,0.00341054]
[1642262550966,0.00113685,3360.9,3360.1,0.00341054]
[1642262551367,0.7698171,3361.2,3360.1,0.00341054]
[1642262551574,0.75061858,3361.2,3360.1,0.00341054]
[1642262551766,1.13435246,3360.3,3360.1,0.00568423]
[1642262551967,1.11602717,3360.3,3360.2,4.34695662]
[1642262552210,1.09410756,3360.3,3360.2,4.34695662]
[1642262552413,2.48447384,3360.3,3360.2,4.35207243]
[1642262552610,2.44602637,3360.3,3360.2,4.35207243]
[1642262552812,2.44602637,3360.3,3360.2,0.00511581]
[1642262552813,2.41864549,3360.3,3360.2,0.00511581]
[1642262553215,2.41864549,3360.3,3360.1,0.00568423]
[1642262553413,2.41864549,3360.3,3360.0,0.1]
[1642262553414,3.96544549,3360.3,3360.0,0.00568423]
[1642262553612,3.96544549,3360.3,3359.6,1.41579982]
[1642262554012,3.96544549,3360.3,3359.7,0.00227369]
[1642262554613,3.19564549,3360.3,3359.7,0.00227369]
[1642262554913,3.19564549,3360.3,3359.4,1.63953782]
[1642262555114,0.04425048,3360.2,3359.4,1.63953782]
[1642262555314,0.04425048,3360.2,3359.5,0.00113685]
[1642262555514,0.04773669,3360.1,3359.5,0.00113685]
[1642262555963,0.00170527,3360.0,3359.5,0.00113685]
[1642262556360,0.00113684,3359.9,3359.5,0.00113685]
[1642262556776,0.77870527,3360.0,3359.5,0.00113685]
[1642262557163,0.00113684,3359.9,3359.5,0.00113685]
[1642262557959,0.72813684,3360.0,3359.5,0.00113685]
[1642262558163,0.72813684,3360.0,3359.5,0.00227369]
[1642262558364,1.56291822,3359.9,3359.5,0.00227369]
[1642262558563,0.03881091,3359.8,3359.5,0.00227369]
[1642262558762,1.56291822,3359.9,3359.5,0.00227369]
[1642262559707,0.05293426,3359.8,3359.5,0.00227369]
[1642262559909,2.33991822,3359.9,3359.5,0.00227369]
[1642262560709,0.02835429,3359.8,3359.5,0.00227369]
[1642262560909,2.33991822,3359.9,3359.5,0.00227369]
[1642262561810,0.0008,3359.8,3359.5,0.00227369]
[1642262562612,0.0016,3359.8,3359.5,0.00227369]
[1642262562812,1.22544079,3359.7,3359.5,0.00227369]
[1642262563468,0.7786,3359.8,3359.6,1.46097787]
[1642262563855,0.7786,3359.8,3359.7,0.00113684]
[1642262564355,0.7786,3359.8,3359.7,1.40572414]
[1642262564561,0.7786,3359.8,3359.7,0.00113684]
[1642262565057,0.7786,3359.8,3359.7,1.46211471]
[1642262565658,0.7786,3359.8,3359.7,1.1767248]
[1642262566061,1.5556,3359.8,3359.7,1.1767248]
[1642262567326,1.5556,3359.8,3359.7,4.5767248]
[1642262568423,1.5556,3359.8,3359.7,6.76689818]
[1642262568822,1.5556,3359.8,3359.7,3.36689818]
[1642262569225,2.3326,3359.8,3359.7,3.36689818]
[1642262569424,0.777,3359.9,3359.7,1.1767248]
[1642262570022,0.777,3359.9,3359.7,1.9207064]
[1642262570324,0.777,3359.9,3359.8,2.54521364]
[1642262570963,0.777,3359.9,3359.8,3.64948748]
[1642262571366,0.777,3359.9,3359.7,5.91051969]
[1642262572363,1.554,3359.9,3359.7,5.91051969]
[1642262572562,1.554,3359.9,3359.7,7.29638072]
[1642262572763,0.72813684,3360.0,3359.7,7.29638072]
[1642262572964,0.822463,3360.3,3359.8,2.54521364]
[1642262573263,0.00170527,3360.2,3359.8,2.54521364]
[1642262573669,0.00113685,3360.1,3359.8,2.54521364]
[1642262574065,0.00113685,3360.1,3359.9,1.45939022]
[1642262574909,0.00113685,3360.1,3360.0,1.45939022]
[1642262575511,0.77813685,3360.1,3360.0,1.45939022]
[1642262576310,0.77813685,3360.1,3359.8,4.73379489]
[1642262577612,0.77813685,3360.1,3360.0,1.46039338]
[1642262577816,1.554,3361.4,3360.2,5.75]
[1642262578017,0.74158935,3361.2,3360.3,2.38031821]
[1642262578214,0.00454739,3360.9,3360.4,1.49553449]
[1642262578659,0.00454739,3360.9,3360.4,1.85253449]
[1642262578660,0.00397896,3360.8,3360.4,1.85253449]
[1642262579059,0.00341054,3360.7,3360.5,1.46039338]
[1642262579560,0.00284212,3360.6,3360.5,1.46039338]
[1642262580059,0.00284212,3360.6,3360.5,5.94591024]
[1642262580660,0.00284212,3360.6,3360.5,4.00560702]
[1642262581862,0.77984212,3360.6,3360.5,4.00560702]
[1642262583413,0.77984212,3360.6,3360.5,2.54521364]
[1642262584216,0.77984212,3360.6,3360.5,4.00560702]
[1642262585119,1.55684212,3360.6,3360.5,2.54521364]
[1642262588261,2.33384212,3360.6,3360.5,2.54521364]
[1642262588464,2.33384212,3360.6,3360.5,2.91529087]
[1642262589740,2.33384212,3360.6,3360.5,2.54521364]
[1642262591322,2.33384212,3360.6,3360.1,1.1605931]
[1642262591522,3.11084212,3360.6,3360.1,1.1605931]
[1642262591723,0.00227369,3360.5,3360.1,1.1605931]
[1642262592122,0.04528929,3360.4,3359.7,0.00113684]
[1642262592324,1.31099447,3360.3,3359.8,1.39891134]
[1642262592523,0.00113685,3360.3,3359.7,0.00227369]
[1642262592827,0.00113685,3360.3,3360.2,2.49521364]
[1642262593461,1.39201127,3360.3,3360.2,2.49521364]
[1642262593666,1.39201127,3360.3,3359.7,0.00227369]
[1642262594063,1.39201127,3360.3,3359.6,0.00284212]
[1642262594665,0.77813685,3360.3,3359.6,0.00284212]
[1642262594865,0.77813685,3360.3,3359.5,0.00341054]
[1642262595065,0.77813685,3360.3,3359.8,1.47532543]
[1642262595471,0.77813685,3360.3,3359.9,0.00113685]
[1642262596167,1.1541775,3360.2,3359.9,0.00113685]
[1642262596969,0.0404207,3360.1,3359.9,0.00113685]
[1642262597214,1.1541775,3360.2,3359.9,0.00113685]
[1642262597808,1.9311775,3360.2,3359.9,0.00113685]
[1642262600411,1.9311775,3360.2,3359.6,0.00284212]
[1642262601162,2.7081775,3360.2,3359.6,0.00284212]
[1642262601461,2.7081775,3360.2,3359.5,0.00341054]
[1642262602061,2.7081775,3360.2,3359.6,0.00360888]
[1642262602267,2.7081775,3360.2,3359.5,0.00341054]
[1642262602463,2.7081775,3360.2,3359.7,0.00227369]
[1642262602663,2.7089775,3360.2,3359.5,0.00341054]
[1642262602863,2.7097775,3360.2,3359.5,0.00341054]
[1642262604065,0.03818042,3360.1,3359.5,0.00341054]
[1642262604264,3.4867775,3360.2,3359.5,0.00341054]
[1642262604464,0.03009422,3360.1,3359.5,0.00341054]
[1642262604720,0.36096584,3360.1,3359.5,0.00341054]
[1642262606115,1.48727184,3359.9,3359.5,0.00341054]
[1642262606315,1.84823768,3359.9,3359.5,0.00341054]
[1642262607416,2.62523768,3359.9,3359.5,0.00341054]
[1642262608468,0.03294644,3359.8,3359.5,0.00341054]
[1642262608663,0.40601425,3359.8,3359.5,0.00341054]
[1642262608864,0.37306781,3359.8,3359.5,0.00341054]
[1642262609571,0.37306781,3359.8,3359.5,2.00341054]
[1642262609766,0.37306781,3359.8,3359.5,0.04887354]
[1642262609966,0.37306781,3359.8,3359.6,0.00284212]
[1642262610366,0.777,3359.9,3359.6,0.00284212]
[1642262610567,0.777,3359.8,3359.6,0.00284212]
[1642262610972,0.777,3359.8,3359.7,1.09291773]
[1642262611366,0.777,3359.8,3359.7,0.00227369]
[1642262611768,0.777,3359.8,3359.6,0.00284212]
[1642262612710,0.7778,3359.8,3359.6,0.00284212]
[1642262612912,0.7786,3359.8,3359.6,0.00284212]
[1642262613112,0.7786,3359.8,3359.7,1.32962888]
[1642262613515,0.7786,3359.8,3359.7,0.00227369]
[1642262613712,1.5556,3359.8,3359.7,0.00227369]
[1642262614712,1.5556,3359.8,3359.7,1.10383392]
[1642262615514,1.5556,3359.8,3359.7,3.64933484]
[1642262616167,1.5556,3359.8,3359.7,2.54777461]
[1642262616666,1.54817347,3359.8,3359.7,2.54777461]
[1642262616862,2.32517347,3359.8,3359.7,2.54777461]
[1642262617481,2.32517347,3359.8,3359.7,0.00227369]
[1642262618963,2.32517347,3359.8,3359.7,2.54550092]
[1642262619366,2.32517347,3359.8,3359.7,2.54777461]
[1642262619812,2.32517347,3359.8,3359.7,0.00227369]
[1642262620010,3.10217347,3359.8,3359.7,0.00227369]
[1642262620216,3.10217347,3359.8,3359.6,0.00284212]
[1642262620410,3.10217347,3359.8,3359.7,0.00227369]
[1642262620610,3.10217347,3359.8,3359.6,0.00284212]
[1642262621513,3.09474694,3359.8,3359.6,0.00284212]
[1642262621913,3.09474694,3359.8,3359.6,3.00284212]
[1642262622115,3.4851775,3360.2,3359.7,4.7]
[1642262622318,3.4851775,3360.2,3360.1,0.05797749]
[1642262622715,3.4851775,3360.2,3360.1,0.48697749]
[1642262622914,1.10240816,3360.2,3360.1,0.48697749]
[1642262623117,1.21640494,3360.5,3360.1,0.48697749]
[1642262623318,0.777,3360.2,3360.1,0.48697749]
[1642262623763,0.777,3360.2,3360.1,3.03247841]
[1642262624161,0.777,3360.2,3360.1,4.20100039]
[1642262624769,0.777,3360.2,3360.1,4.94494039]
[1642262626566,1.554,3360.2,3360.1,4.94494039]
[1642262626960,1.554,3360.2,3360.1,22.33494039]
[1642262628223,0.00227369,3360.5,3360.1,22.33494039]
[1642262628426,0.00227369,3360.5,3360.4,0.045463]
[1642262628628,0.777,3360.9,3360.5,8.0]
[1642262628825,0.777,3360.9,3360.8,4.695463]
[1642262629025,0.777,3360.9,3360.8,7.0858554]
[1642262629341,0.727,3360.9,3360.8,2.4358554]
[1642262629724,1.445,3360.9,3360.8,2.4358554]
[1642262629925,1.445,3360.9,3360.8,3.55884097]
[1642262631158,1.445,3360.9,3360.8,11.10434189]
[1642262631358,1.445,3360.9,3360.8,9.14294949]
[1642262631558,1.4375759,3360.9,3360.8,9.14294949]
[1642262632558,1.4375759,3360.9,3360.8,9.09748649]
[1642262632959,2.2145759,3360.9,3360.8,9.09748649]
[1642262633458,2.2145759,3360.9,3360.8,6.55198557]
[1642262634358,2.2145759,3360.9,3360.8,9.0970458]
[1642262636110,7.46,3361.6,3360.9,6.25]
[1642262636312,7.46,3361.6,3361.1,3.02085495]
[1642262636512,1.5465759,3361.4,3361.3,2.19626004]
[1642262636709,1.5465759,3361.4,3361.3,2.62526004]
[1642262636912,1.55169172,3361.4,3361.3,2.62526004]
[1642262637412,1.55169172,3361.4,3361.3,4.0998012]
[1642262637810,1.55169172,3361.4,3361.3,3.88800533]
[1642262638010,1.55169172,3361.4,3361.3,3.93346833]
[1642262638212,1.55169172,3361.4,3361.3,6.47852856]
[1642262638475,1.55169172,3361.4,3361.3,10.62852856]
[1642262638663,1.55169172,3361.4,3361.3,6.38306556]
[1642262639063,0.64054684,3361.4,3361.3,15.83306556]
[1642262639264,0.777,3361.4,3361.3,33.26852856]
[1642262639462,7.46,3361.6,3361.4,7.1]
[1642262639664,7.46,3361.6,3361.5,7.17189693]
[1642262640163,7.46113684,3361.6,3361.5,8.5602157]
[1642262640361,7.41440164,3361.6,3361.5,8.5602157]
[1642262640564,7.41440164,3361.6,3361.5,29.54073893]
[1642262640565,0.00113684,3361.6,3361.5,29.54073893]
[1642262640767,0.00113684,3361.6,3361.5,29.44073893]
[1642262641163,1.1664,3363.2,3361.7,0.74344]
[1642262641364,1.1664,3363.2,3361.8,3.25591469]
[1642262641667,1.1664,3363.2,3361.9,2.12229729]
[1642262641668,0.71057745,3362.0,3361.9,2.12229729]
[1642262641864,0.71057745,3362.0,3361.9,2.55129729]
[1642262642065,0.71285115,3362.0,3361.9,2.55129729]
[1642262642313,0.71285115,3362.0,3361.9,3.68783061]
[1642262642518,1.48985115,3362.0,3361.9,4.11059355]
[1642262644111,1.48985115,3362.0,3361.9,1.56553332]
[1642262644611,1.48985115,3362.0,3361.9,3.58062175]
[1642262645212,1.48985115,3362.0,3361.9,6.12473836]
[1642262645811,2.26685115,3362.0,3361.9,6.12473836]
[1642262646062,2.16685115,3362.0,3361.9,4.15511293]
[1642262647062,2.16685115,3362.0,3361.9,1.61099632]
[1642262649266,2.94385115,3362.0,3361.9,1.61099632]
[1642262650616,2.94385115,3362.0,3361.9,6.11951825]
[1642262651117,2.94385115,3362.0,3361.9,4.15503051]
[1642262651714,2.93642948,3362.0,3361.9,9.10739682]
[1642262652316,2.93642948,3362.0,3361.9,7.15503051]
[1642262652515,3.71342948,3362.0,3361.9,7.15503051]
[1642262653965,3.71342948,3362.0,3361.9,7.10956751]
[1642262655165,3.71342948,3362.0,3361.9,4.56553332]
[1642262655766,4.49042948,3362.0,3361.9,4.56553332]
[1642262656568,4.48300781,3362.0,3361.9,4.56553332]
[1642262659013,5.26000781,3362.0,3361.9,6.54800623]
[1642262659411,5.26000781,3362.0,3361.9,4.56553332]
[1642262660511,5.26000781,3362.0,3361.9,6.56732543]
[1642262660717,5.26000781,3362.0,3361.9,6.57654093]
[1642262660968,5.26000781,3362.0,3361.9,4.61099632]
[1642262662164,6.03700781,3362.0,3361.9,4.61099632]
[1642262665415,6.81400781,3362.0,3361.9,4.61099632]
[1642262666613,6.80658614,3362.0,3361.9,4.61099632]
[1642262668667,7.58358614,3362.0,3361.9,4.61099632]
[1642262670265,7.58358614,3362.0,3361.9,4.56553332]
[1642262670667,7.58358614,3362.0,3361.9,4.13653332]
[1642262671667,7.58358614,3362.0,3361.9,6.6806219]
[1642262671868,8.36058614,3362.0,3361.9,6.6796219]
[1642262672068,8.35831244,3362.0,3361.9,6.6796219]
[1642262675014,9.13531244,3362.0,3361.9,6.6796219]
[1642262675816,9.13531244,3362.0,3361.9,6.7250849]
[1642262676069,9.13531244,3362.0,3361.9,14.3120249]
[1642262676567,9.12789077,3362.0,3361.9,8.2120249]
[1642262677766,9.12789077,3362.0,3361.9,8.6410249]
[1642262678167,9.90489077,3362.0,3361.9,26.0310249]
[1642262678567,9.90489077,3362.0,3361.9,27.49141828]
[1642262679574,5.0848,3362.8,3361.9,29.84715777]
[1642262679819,0.777,3362.9,3362.5,0.00353117]
[1642262680016,0.49169437,3362.9,3362.7,0.045463]
[1642262680217,11.6959,3364.1,3362.8,17.864463]
[1642262680416,17.2313,3364.1,3362.9,3.45511117]
[1642262680619,17.2313,3364.1,3363.2,0.045463]
[1642262680620,21.1185,3364.1,3363.2,0.045463]
[1642262680814,21.1185,3364.1,3363.3,0.474463]
[1642262681015,15.4228,3364.1,3363.4,1.4127284]
[1642262681215,15.4228,3364.1,3363.5,0.429]
[1642262681414,0.216,3363.6,3363.5,0.429]
[1642262681625,0.22111581,3363.6,3363.5,1.81127854]
[1642262682216,0.22111581,3363.6,3363.5,4.81127854]
[1642262682418,0.16211581,3363.6,3363.5,4.81127854]
[1642262682617,0.16211581,3363.6,3363.5,6.82137625]
[1642262683018,0.16211581,3363.6,3363.5,4.81127854]
[1642262683218,0.16211581,3363.6,3363.5,7.35536712]
[1642262683479,0.16211581,3363.6,3363.5,9.33500803]
[1642262683766,6.3124,3364.1,3363.7,1.4860891]
[1642262683969,6.3124,3364.1,3363.8,0.429]
[1642262683970,0.777,3364.1,3363.8,0.429]
[1642262684170,0.0022737,3364.0,3363.8,0.474463]
[1642262684566,0.00170527,3363.9,3363.8,0.474463]
[1642262685080,0.00170527,3363.9,3363.8,0.424463]
[1642262685464,0.00170527,3363.9,3363.8,0.379]
[1642262686466,0.00170527,3363.9,3363.7,3.81613287]
[1642262686676,0.03524175,3363.9,3363.6,0.045463]
[1642262686867,0.00113685,3363.8,3363.6,0.045463]
[1642262687068,0.03848546,3363.8,3363.6,0.045463]
[1642262687523,0.00113685,3363.8,3363.5,3.0]
[1642262687725,0.77813685,3363.8,3363.5,3.0]
[1642262687923,0.04801403,3363.7,3363.5,3.0]
[1642262688124,0.77813685,3363.8,3363.6,2.0]
[1642262690970,1.55513685,3363.8,3363.6,2.0]
[1642262692966,3.00336301,3363.8,3363.6,2.0]
[1642262693167,1.55513685,3363.8,3363.6,2.045463]
[1642262693366,1.55513685,3363.8,3363.6,2.0]
[1642262694166,2.33213685,3363.8,3363.6,2.0]
[1642262697123,13.95,3363.6,3363.2,0.045463]
[1642262697329,16.25,3363.7,3362.2,3.81613287]
[1642262697330,0.01256783,3363.3,3362.2,3.81613287]
[1642262697621,0.71356783,3363.3,3362.2,3.81613287]
[1642262697820,2.50426852,3363.2,3362.2,3.81613287]
[1642262698019,1.41005193,3362.3,3362.2,3.81613287]
[1642262698222,0.01256783,3363.3,3361.9,1.25973571]
[1642262698223,1.11442843,3362.2,3361.9,1.25973571]
[1642262699270,0.03309895,3362.1,3361.9,1.25973571]
[1642262700071,0.02910917,3362.1,3361.9,1.25973571]
[1642262700272,0.02910917,3362.1,3361.8,0.119116]
[1642262700474,2.74872172,3362.1,3361.8,0.119116]
[1642262700772,0.777,3362.1,3361.9,0.0096632]
[1642262701270,2.74672594,3362.1,3361.9,0.0096632]
[1642262701472,1.22613833,3362.0,3361.9,0.0096632]
[1642262702419,1.17613833,3362.0,3361.9,0.0096632]
[1642262702620,1.17613833,3362.0,3361.9,3.0096632]
[1642262702820,1.17613833,3362.0,3361.9,3.0]
[1642262703419,3.11513204,3362.0,3361.9,3.0]
[1642262703628,3.11499403,3362.0,3361.4,0.01250531]
[1642262703823,3.11499403,3362.0,3360.8,2.0]
[1642262703824,1.17613833,3362.0,3360.8,2.0]